[Event "*** Titled Tuesday Blitz"]
[Site "Chess.com"]
[Date "2020.12.01"]
[Round "8"]
[White "hansen"]
[Black "Malev212"]
[Result "1-0"]
[WhiteElo "2899"]
[BlackElo "2558"]
[TimeControl "180+1"]
[EndTime "11:26:57 PST"]
[Termination "hansen won on time"]

1. e4 {[%clk 0:03:00.7]} 1... e5 {[%clk 0:02:59.7]} 2. Nf3 {[%clk 0:03:00]} 2...
Nc6 {[%clk 0:02:59.2]} 3. Bb5 {[%clk 0:02:59.9]} 3... Bc5 {[%clk 0:02:56.7]} 4.
c3 {[%clk 0:02:33.4]} 4... Bb6 {[%clk 0:02:55.8]} 5. d4 {[%clk 0:02:31.6]} 5...
exd4 {[%clk 0:02:55.5]} 6. O-O {[%clk 0:02:32]} 6... Nf6 {[%clk 0:02:33.5]} 7.
e5 {[%clk 0:02:27]} 7... Nd5 {[%clk 0:02:32.2]} 8. Bg5 {[%clk 0:02:26.7]} 8...
Nce7 {[%clk 0:02:20.9]} 9. Bc4 {[%clk 0:01:39.7]} 9... h6 {[%clk 0:02:13.4]} 10.
Bh4 {[%clk 0:01:39.8]} 10... Nf4 {[%clk 0:02:06.6]} 11. Nxd4 {[%clk 0:01:37.1]}
11... Nfg6 {[%clk 0:01:59.9]} 12. Qh5 {[%clk 0:01:24.6]} 12... O-O {[%clk
0:01:49.2]} 13. Bg3 {[%clk 0:00:54.1]} 13... d5 {[%clk 0:01:48.4]} 14. exd6
{[%clk 0:00:54.1]} 14... cxd6 {[%clk 0:01:47.8]} 15. Re1 {[%clk 0:00:53.3]}
15... Ne5 {[%clk 0:01:27]} 16. Bxe5 {[%clk 0:00:36.8]} 16... dxe5 {[%clk
0:01:26.2]} 17. Nf3 {[%clk 0:00:33.2]} 17... Nc6 {[%clk 0:00:58.4]} 18. Nbd2
{[%clk 0:00:33]} 18... Qf6 {[%clk 0:00:28.6]} 19. Ne4 {[%clk 0:00:30.2]} 19...
Qf4 {[%clk 0:00:26.9]} 20. h3 {[%clk 0:00:20.6]} 20... Be6 {[%clk 0:00:19]} 21.
Bxe6 {[%clk 0:00:19.5]} 21... fxe6 {[%clk 0:00:18.9]} 22. Rad1 {[%clk
0:00:18.4]} 22... Qf5 {[%clk 0:00:18.2]} 23. Qh4 {[%clk 0:00:17.3]} 23... Rfd8
{[%clk 0:00:15.1]} 24. Qg4 {[%clk 0:00:16.4]} 24... h5 {[%clk 0:00:13.6]} 25.
Qh4 {[%clk 0:00:15.9]} 25... Rd5 {[%clk 0:00:12.5]} 26. Ng3 {[%clk 0:00:15.4]}
26... Qf4 {[%clk 0:00:10]} 27. Rxd5 {[%clk 0:00:13.8]} 27... Qxh4 {[%clk
0:00:07.8]} 28. Nxh4 {[%clk 0:00:13.3]} 28... exd5 {[%clk 0:00:08.6]} 29. Nxh5
{[%clk 0:00:12.8]} 29... Rf8 {[%clk 0:00:08]} 30. Re2 {[%clk 0:00:13.2]} 30...
e4 {[%clk 0:00:06.9]} 31. g3 {[%clk 0:00:12]} 31... Ne5 {[%clk 0:00:05.9]} 32.
Kg2 {[%clk 0:00:06.4]} 32... g5 {[%clk 0:00:06.3]} 33. f4 {[%clk 0:00:01.7]}
33... exf3+ {[%clk 0:00:05]} 34. Nxf3 {[%clk 0:00:02.1]} 34... Nxf3 {[%clk
0:00:05.4]} 35. Re7 {[%clk 0:00:01.8]} 35... Nd2 {[%clk 0:00:03]} 36. h4 {[%clk
0:00:01.4]} 36... Rf4 {[%clk 0:00:02.4]} 37. gxf4 {[%clk 0:00:01.3]} 1-0

[Event "*** Titled Tuesday Blitz"]
[Site "Chess.com"]
[Date "2020.12.01"]
[Round "8"]
[White "canary2016"]
[Black "HajduIstvanCM"]
[Result "1-0"]
[WhiteElo "1988"]
[BlackElo "1753"]
[TimeControl "180+1"]
[EndTime "11:26:57 PST"]
[Termination "canary2016 won on time"]

1. d4 {[%clk 0:03:00.9]} 1... d5 {[%clk 0:02:58.7]} 2. c4 {[%clk 0:03:00.4]}
2... c6 {[%clk 0:02:57.5]} 3. Nf3 {[%clk 0:02:59.5]} 3... Nf6 {[%clk 0:02:56.7]}
4. Nc3 {[%clk 0:02:58.7]} 4... dxc4 {[%clk 0:02:55.9]} 5. e3 {[%clk 0:02:57]}
5... Bf5 {[%clk 0:02:55.1]} 6. Bxc4 {[%clk 0:02:55.8]} 6... e6 {[%clk
0:02:55.4]} 7. O-O {[%clk 0:02:55.2]} 7... Bb4 {[%clk 0:02:52.4]} 8. a3 {[%clk
0:02:50.5]} 8... Bxc3 {[%clk 0:02:49.8]} 9. bxc3 {[%clk 0:02:50]} 9... O-O
{[%clk 0:02:48.4]} 10. Qb3 {[%clk 0:02:49.4]} 10... Qc7 {[%clk 0:02:38.6]} 11.
h3 {[%clk 0:02:46.3]} 11... h6 {[%clk 0:02:33.1]} 12. Nd2 {[%clk 0:02:45.8]}
12... Nbd7 {[%clk 0:02:29.6]} 13. Be2 {[%clk 0:02:44.4]} 13... Ne4 {[%clk
0:02:22]} 14. Bf3 {[%clk 0:02:42.9]} 14... Ndf6 {[%clk 0:02:17.9]} 15. Nc4
{[%clk 0:02:27.8]} 15... Nd7 {[%clk 0:02:06]} 16. Rd1 {[%clk 0:02:20.7]} 16...
Rad8 {[%clk 0:02:02.2]} 17. Nd2 {[%clk 0:02:10.7]} 17... Ndf6 {[%clk 0:01:56]}
18. c4 {[%clk 0:02:10.7]} 18... Nxd2 {[%clk 0:01:53.7]} 19. Bxd2 {[%clk
0:02:10]} 19... Ne4 {[%clk 0:01:47.7]} 20. Bb4 {[%clk 0:02:09.1]} 20... Rfe8
{[%clk 0:01:39]} 21. Rac1 {[%clk 0:02:08.7]} 21... a5 {[%clk 0:01:31.7]} 22. Be1
{[%clk 0:02:04.9]} 22... Rd7 {[%clk 0:01:23.1]} 23. d5 {[%clk 0:02:03.4]} 23...
exd5 {[%clk 0:01:12.1]} 24. cxd5 {[%clk 0:02:02.8]} 24... c5 {[%clk 0:01:04]}
25. Qc4 {[%clk 0:01:53.8]} 25... b6 {[%clk 0:00:41.9]} 26. Bc3 {[%clk 0:01:49]}
26... Nxc3 {[%clk 0:00:39.8]} 27. Qxc3 {[%clk 0:01:48]} 27... Qe5 {[%clk
0:00:37.5]} 28. Qb3 {[%clk 0:01:45.7]} 28... Rd6 {[%clk 0:00:35.3]} 29. Rd2
{[%clk 0:01:36.9]} 29... Be4 {[%clk 0:00:34.6]} 30. Bxe4 {[%clk 0:01:31.1]}
30... Qxe4 {[%clk 0:00:33.8]} 31. Rcd1 {[%clk 0:01:31.1]} 31... Red8 {[%clk
0:00:31.9]} 32. Qb5 {[%clk 0:01:24.9]} 32... g5 {[%clk 0:00:29.3]} 33. Qb3
{[%clk 0:01:16.5]} 33... h5 {[%clk 0:00:27.8]} 34. f3 {[%clk 0:01:15.6]} 34...
Qe5 {[%clk 0:00:24.1]} 35. e4 {[%clk 0:01:15.2]} 35... f6 {[%clk 0:00:20.6]} 36.
Rb2 {[%clk 0:01:14.3]} 36... Rb8 {[%clk 0:00:15.3]} 37. Qc2 {[%clk 0:01:12.6]}
37... g4 {[%clk 0:00:13.7]} 38. hxg4 {[%clk 0:01:10.3]} 38... hxg4 {[%clk
0:00:13.3]} 39. Rd2 {[%clk 0:01:01]} 39... g3 {[%clk 0:00:11.9]} 40. Qd3 {[%clk
0:00:57.5]} 40... Qh5 {[%clk 0:00:10.5]} 41. f4 {[%clk 0:00:35.7]} 41... Qh2+
{[%clk 0:00:09.4]} 42. Kf1 {[%clk 0:00:35.7]} 42... Qh1+ {[%clk 0:00:09.3]} 43.
Ke2 {[%clk 0:00:35.7]} 43... Qxg2+ {[%clk 0:00:09.4]} 44. Kd1 {[%clk 0:00:35.7]}
44... Qg1+ {[%clk 0:00:07.7]} 45. Kc2 {[%clk 0:00:34.7]} 45... g2 {[%clk
0:00:06.5]} 46. Qg3+ {[%clk 0:00:33.7]} 46... Kf7 {[%clk 0:00:05.7]} 47. Rxg2
{[%clk 0:00:32.8]} 47... Qd4 {[%clk 0:00:01.5]} 48. Qg7+ {[%clk 0:00:30.5]}
48... Ke8 {[%clk 0:00:01.1]} 49. Qg8+ {[%clk 0:00:29.4]} 1-0

[Event "*** Titled Tuesday Blitz"]
[Site "Chess.com"]
[Date "2020.12.01"]
[Round "8"]
[White "Fh2411"]
[Black "ChessQueen"]
[Result "0-1"]
[WhiteElo "2545"]
[BlackElo "2718"]
[TimeControl "180+1"]
[EndTime "11:26:59 PST"]
[Termination "ChessQueen won on time"]

1. d4 {[%clk 0:03:00.9]} 1... Nf6 {[%clk 0:02:58.9]} 2. Nf3 {[%clk 0:03:01.1]}
2... b6 {[%clk 0:02:57.9]} 3. g3 {[%clk 0:03:00.3]} 3... Bb7 {[%clk 0:02:58.1]}
4. Bg2 {[%clk 0:03:01.2]} 4... g6 {[%clk 0:02:56.8]} 5. O-O {[%clk 0:03:01.7]}
5... Bg7 {[%clk 0:02:57.2]} 6. Bf4 {[%clk 0:02:45.7]} 6... c5 {[%clk 0:02:53]}
7. c3 {[%clk 0:02:44.7]} 7... O-O {[%clk 0:02:52.4]} 8. Qc1 {[%clk 0:02:31.7]}
8... Re8 {[%clk 0:02:49.3]} 9. Bh6 {[%clk 0:02:27.3]} 9... Bh8 {[%clk
0:02:49.5]} 10. Rd1 {[%clk 0:02:23.6]} 10... Na6 {[%clk 0:02:43.6]} 11. Nbd2
{[%clk 0:02:22.4]} 11... Rc8 {[%clk 0:02:42.8]} 12. Nf1 {[%clk 0:02:15.8]} 12...
cxd4 {[%clk 0:02:40.2]} 13. Nxd4 {[%clk 0:02:15.1]} 13... Bxg2 {[%clk 0:02:40]}
14. Kxg2 {[%clk 0:02:16]} 14... Qc7 {[%clk 0:02:40.5]} 15. Qg5 {[%clk
0:02:07.2]} 15... Nc5 {[%clk 0:02:38.1]} 16. Qh4 {[%clk 0:02:03]} 16... e5
{[%clk 0:02:26.9]} 17. Nf5 {[%clk 0:01:54.6]} 17... Nce4 {[%clk 0:02:15]} 18.
N5e3 {[%clk 0:01:43.9]} 18... Qc6 {[%clk 0:02:01.8]} 19. f3 {[%clk 0:01:42.6]}
19... Nc5 {[%clk 0:01:48.9]} 20. c4 {[%clk 0:00:57.1]} 20... e4 {[%clk
0:01:45.4]} 21. f4 {[%clk 0:00:51.7]} 21... Na4 {[%clk 0:01:34.3]} 22. b3 {[%clk
0:00:49.3]} 22... Nc3 {[%clk 0:01:31.8]} 23. Rd2 {[%clk 0:00:49.4]} 23... d5
{[%clk 0:01:32.1]} 24. Rc1 {[%clk 0:00:45.5]} 24... d4 {[%clk 0:01:28.1]} 25.
Rxd4 {[%clk 0:00:36.5]} 25... Nxe2 {[%clk 0:01:28.3]} 26. Rcd1 {[%clk
0:00:35.8]} 26... Nxd4 {[%clk 0:01:28]} 27. Rxd4 {[%clk 0:00:36.7]} 27... Qc5
{[%clk 0:01:25.5]} 28. Rd2 {[%clk 0:00:32.9]} 28... Rcd8 {[%clk 0:01:22.4]} 29.
Re2 {[%clk 0:00:33]} 29... Rd3 {[%clk 0:01:16]} 30. f5 {[%clk 0:00:30.8]} 30...
Qd4 {[%clk 0:00:43.9]} 31. g4 {[%clk 0:00:23.7]} 31... Qd8 {[%clk 0:00:42.9]}
32. Bg5 {[%clk 0:00:23.3]} 32... Qd6 {[%clk 0:00:41.1]} 33. h3 {[%clk
0:00:15.9]} 33... a5 {[%clk 0:00:41.4]} 34. Qf2 {[%clk 0:00:15.8]} 34... a4
{[%clk 0:00:41.3]} 35. Bf4 {[%clk 0:00:15.4]} 35... Qc5 {[%clk 0:00:39.5]} 36.
Bg5 {[%clk 0:00:11.2]} 36... axb3 {[%clk 0:00:38.4]} 37. axb3 {[%clk 0:00:12.1]}
37... Nd7 {[%clk 0:00:36.8]} 38. Nd5 {[%clk 0:00:09.2]} 38... Qxf2+ {[%clk
0:00:34.5]} 39. Rxf2 {[%clk 0:00:09.5]} 39... f6 {[%clk 0:00:33.2]} 40. Bc1
{[%clk 0:00:05.8]} 40... Kf7 {[%clk 0:00:31.5]} 41. Nfe3 {[%clk 0:00:05.2]}
41... Rxb3 {[%clk 0:00:31.1]} 42. g5 {[%clk 0:00:03.2]} 42... Rb1 {[%clk
0:00:26.2]} 43. Bd2 {[%clk 0:00:02.4]} 43... Ne5 {[%clk 0:00:24.6]} 44. fxg6+
{[%clk 0:00:01.6]} 44... hxg6 {[%clk 0:00:25.1]} 45. Nxf6 {[%clk 0:00:01.2]}
45... Nd3 {[%clk 0:00:24.4]} 0-1

[Event "*** Titled Tuesday Blitz"]
[Site "Chess.com"]
[Date "2020.12.01"]
[Round "8"]
[White "cstevens1"]
[Black "Roza_Idrisova"]
[Result "1-0"]
[WhiteElo "2642"]
[BlackElo "2195"]
[TimeControl "180+1"]
[EndTime "11:26:59 PST"]
[Termination "cstevens1 won by resignation"]

1. e4 {[%clk 0:03:00.9]} 1... c6 {[%clk 0:02:59.5]} 2. d4 {[%clk 0:03:00]} 2...
d5 {[%clk 0:02:58.2]} 3. e5 {[%clk 0:03:00.3]} 3... c5 {[%clk 0:02:57.1]} 4.
dxc5 {[%clk 0:02:59.8]} 4... e6 {[%clk 0:02:55]} 5. Nf3 {[%clk 0:02:58.8]} 5...
Bxc5 {[%clk 0:02:53.9]} 6. Bd3 {[%clk 0:02:59.4]} 6... Ne7 {[%clk 0:02:52.3]} 7.
O-O {[%clk 0:02:59.9]} 7... Ng6 {[%clk 0:02:52.2]} 8. Nc3 {[%clk 0:02:46.5]}
8... Nc6 {[%clk 0:02:51.9]} 9. Qe2 {[%clk 0:02:41.2]} 9... O-O {[%clk 0:02:51]}
10. Re1 {[%clk 0:02:30.4]} 10... a6 {[%clk 0:02:49]} 11. a3 {[%clk 0:02:20.5]}
11... b5 {[%clk 0:02:47.8]} 12. g3 {[%clk 0:02:15.3]} 12... Bb7 {[%clk
0:02:46.5]} 13. h4 {[%clk 0:02:14.3]} 13... d4 {[%clk 0:02:42.6]} 14. Ne4 {[%clk
0:02:13.9]} 14... Qb6 {[%clk 0:02:25.5]} 15. Nxc5 {[%clk 0:02:11.4]} 15... Qxc5
{[%clk 0:02:24.9]} 16. h5 {[%clk 0:02:12.3]} 16... Nge7 {[%clk 0:02:21.7]} 17.
h6 {[%clk 0:02:11.5]} 17... g6 {[%clk 0:02:20.7]} 18. Bg5 {[%clk 0:02:06.4]}
18... Nd5 {[%clk 0:02:11.2]} 19. Nh2 {[%clk 0:01:59.8]} 19... Rae8 {[%clk
0:02:07.4]} 20. Ng4 {[%clk 0:01:59.7]} 20... Nce7 {[%clk 0:01:47.9]} 21. Be4
{[%clk 0:01:42.2]} 21... f5 {[%clk 0:01:39.9]} 22. exf6 {[%clk 0:01:41.2]} 22...
Nf5 {[%clk 0:01:36.3]} 23. Kh2 {[%clk 0:01:11.2]} 23... e5 {[%clk 0:01:34.6]}
24. Rad1 {[%clk 0:01:05.3]} 24... Re6 {[%clk 0:01:29.1]} 25. Qd3 {[%clk
0:00:53]} 25... Qc6 {[%clk 0:01:06.7]} 26. f3 {[%clk 0:00:33.2]} 26... Qc7
{[%clk 0:00:46.5]} 27. Re2 {[%clk 0:00:31.8]} 27... Nde3 {[%clk 0:00:40.2]} 28.
Nxe3 {[%clk 0:00:27.3]} 28... Nxe3 {[%clk 0:00:35.4]} 29. Bxe3 {[%clk
0:00:27.7]} 29... dxe3 {[%clk 0:00:34.8]} 30. Rxe3 {[%clk 0:00:28]} 30... Bxe4
{[%clk 0:00:27.4]} 31. Qxe4 {[%clk 0:00:25.5]} 31... Rexf6 {[%clk 0:00:25.8]}
32. Rd5 {[%clk 0:00:19.9]} 32... g5 {[%clk 0:00:15]} 33. Rxe5 {[%clk 0:00:17.9]}
33... Rxh6+ {[%clk 0:00:14.9]} 34. Kg2 {[%clk 0:00:18.4]} 34... Rhf6 {[%clk
0:00:12.4]} 35. Rxg5+ {[%clk 0:00:17.9]} 35... Rg6 {[%clk 0:00:12.1]} 36. Rxg6+
{[%clk 0:00:17.7]} 36... hxg6 {[%clk 0:00:12.5]} 37. Qxg6+ {[%clk 0:00:18.3]}
37... Qg7 {[%clk 0:00:12.7]} 38. Qxg7+ {[%clk 0:00:18.4]} 38... Kxg7 {[%clk
0:00:13]} 39. Re6 {[%clk 0:00:18.9]} 39... Ra8 {[%clk 0:00:12.9]} 40. Rb6 {[%clk
0:00:17.9]} 40... Kf7 {[%clk 0:00:13.1]} 41. c3 {[%clk 0:00:18.2]} 41... Ra7
{[%clk 0:00:13.2]} 42. f4 {[%clk 0:00:18.5]} 42... Ke7 {[%clk 0:00:14.1]} 43.
Kf3 {[%clk 0:00:18.8]} 43... Kd7 {[%clk 0:00:15]} 44. Rh6 {[%clk 0:00:19.1]}
44... Kc7 {[%clk 0:00:15.9]} 45. Rh7+ {[%clk 0:00:19.3]} 45... Kb6 {[%clk
0:00:15.2]} 46. Rxa7 {[%clk 0:00:20.2]} 46... Kxa7 {[%clk 0:00:16.1]} 47. g4
{[%clk 0:00:20.9]} 47... Kb6 {[%clk 0:00:17]} 48. g5 {[%clk 0:00:21.3]} 48...
Kc6 {[%clk 0:00:16.7]} 49. g6 {[%clk 0:00:21.1]} 49... Kd6 {[%clk 0:00:16.7]}
50. g7 {[%clk 0:00:21.4]} 1-0

[Event "*** Titled Tuesday Blitz"]
[Site "Chess.com"]
[Date "2020.12.01"]
[Round "8"]
[White "TheCairnTerrier"]
[Black "ybruned"]
[Result "1/2-1/2"]
[WhiteElo "2153"]
[BlackElo "2274"]
[TimeControl "180+1"]
[EndTime "11:27:00 PST"]
[Termination "Game drawn by repetition"]

1. e4 {[%clk 0:03:00.9]} 1... c5 {[%clk 0:02:59.3]} 2. Nf3 {[%clk 0:02:58.5]}
2... d6 {[%clk 0:02:59.4]} 3. Bb5+ {[%clk 0:02:58.5]} 3... Bd7 {[%clk
0:02:59.3]} 4. Bxd7+ {[%clk 0:02:58.4]} 4... Qxd7 {[%clk 0:03:00.2]} 5. c4
{[%clk 0:02:58.5]} 5... Nf6 {[%clk 0:02:58.6]} 6. Nc3 {[%clk 0:02:56.8]} 6... g6
{[%clk 0:02:59.1]} 7. O-O {[%clk 0:02:54.4]} 7... Bg7 {[%clk 0:02:59.6]} 8. d4
{[%clk 0:02:46.6]} 8... cxd4 {[%clk 0:02:57.5]} 9. Nxd4 {[%clk 0:02:47.5]} 9...
O-O {[%clk 0:02:57.7]} 10. f3 {[%clk 0:02:46]} 10... Nc6 {[%clk 0:02:58]} 11.
Nde2 {[%clk 0:02:45.4]} 11... Qd8 {[%clk 0:02:51.4]} 12. Be3 {[%clk 0:02:44.2]}
12... Nd7 {[%clk 0:02:51.9]} 13. Qd2 {[%clk 0:02:42.5]} 13... Nde5 {[%clk
0:02:45.2]} 14. b3 {[%clk 0:02:37]} 14... a6 {[%clk 0:02:37.4]} 15. Rac1 {[%clk
0:02:36.3]} 15... Rc8 {[%clk 0:02:34.3]} 16. Rfd1 {[%clk 0:02:35.3]} 16... Qa5
{[%clk 0:02:30.7]} 17. Kh1 {[%clk 0:02:23.8]} 17... b5 {[%clk 0:02:24.8]} 18.
cxb5 {[%clk 0:02:17.9]} 18... axb5 {[%clk 0:02:24]} 19. Nd4 {[%clk 0:02:14.9]}
19... Nxd4 {[%clk 0:01:47.9]} 20. Bxd4 {[%clk 0:02:15.8]} 20... Rfe8 {[%clk
0:01:45.8]} 21. Nd5 {[%clk 0:02:05.8]} 21... Qxd2 {[%clk 0:01:44.4]} 22. Nxe7+
{[%clk 0:01:59.5]} 22... Kf8 {[%clk 0:01:34.7]} 23. Nxc8 {[%clk 0:01:59.2]}
23... Qb4 {[%clk 0:01:29.2]} 24. Nxd6 {[%clk 0:01:57.5]} 24... Nd7 {[%clk
0:01:24.5]} 25. Bxg7+ {[%clk 0:01:46]} 25... Kxg7 {[%clk 0:01:21.5]} 26. Nxe8+
{[%clk 0:01:45.9]} 26... Kf8 {[%clk 0:01:22]} 27. Rxd7 {[%clk 0:01:42.7]} 27...
Kxe8 {[%clk 0:01:20.8]} 28. Rcd1 {[%clk 0:01:34.7]} 28... Kf8 {[%clk 0:01:19.7]}
29. h3 {[%clk 0:01:33.8]} 29... Qc3 {[%clk 0:01:10.8]} 30. R7d5 {[%clk
0:01:20.6]} 30... Qc2 {[%clk 0:01:05]} 31. R1d2 {[%clk 0:01:07.2]} 31... Qc6
{[%clk 0:01:00.3]} 32. b4 {[%clk 0:00:54.5]} 32... Qc4 {[%clk 0:00:53.5]} 33. a3
{[%clk 0:00:53.5]} 33... h5 {[%clk 0:00:45.9]} 34. Rc5 {[%clk 0:00:52.9]} 34...
Qf1+ {[%clk 0:00:42.4]} 35. Kh2 {[%clk 0:00:52.9]} 35... Qe1 {[%clk 0:00:33.7]}
36. Rd8+ {[%clk 0:00:50]} 36... Kg7 {[%clk 0:00:32.8]} 37. Rcd5 {[%clk
0:00:28.9]} 37... h4 {[%clk 0:00:30.2]} 38. Rd1 {[%clk 0:00:29.1]} 38... Qg3+
{[%clk 0:00:30.2]} 39. Kh1 {[%clk 0:00:29.2]} 39... Qf2 {[%clk 0:00:30.2]} 40.
R8d5 {[%clk 0:00:27.7]} 40... Qe2 {[%clk 0:00:27.7]} 41. Rc1 {[%clk 0:00:24.4]}
41... Qb2 {[%clk 0:00:19.9]} 42. Rcc5 {[%clk 0:00:18.1]} 42... Qb1+ {[%clk
0:00:17.9]} 43. Kh2 {[%clk 0:00:17.5]} 43... Qe1 {[%clk 0:00:18.2]} 44. Rxb5
{[%clk 0:00:14.2]} 44... Qg3+ {[%clk 0:00:17.5]} 45. Kg1 {[%clk 0:00:14.7]}
45... Qe1+ {[%clk 0:00:18.4]} 46. Kh2 {[%clk 0:00:15.3]} 46... Qg3+ {[%clk
0:00:19.3]} 47. Kg1 {[%clk 0:00:15.9]} 47... Qe1+ {[%clk 0:00:20.2]} 48. Kh2
{[%clk 0:00:16.4]} 1/2-1/2

[Event "*** Titled Tuesday Blitz"]
[Site "Chess.com"]
[Date "2020.12.01"]
[Round "8"]
[White "Blitzking642"]
[Black "TheKingDoctor"]
[Result "1-0"]
[WhiteElo "2227"]
[BlackElo "2064"]
[TimeControl "180+1"]
[EndTime "11:27:00 PST"]
[Termination "Blitzking642 won on time"]

1. e4 {[%clk 0:03:00.9]} 1... c5 {[%clk 0:02:41.2]} 2. Nf3 {[%clk 0:03:00.1]}
2... g6 {[%clk 0:02:41]} 3. d4 {[%clk 0:02:58.5]} 3... cxd4 {[%clk 0:02:41.9]}
4. Nxd4 {[%clk 0:02:57.8]} 4... Bg7 {[%clk 0:02:42]} 5. c4 {[%clk 0:02:57.9]}
5... Nc6 {[%clk 0:02:42.4]} 6. Be3 {[%clk 0:02:56.5]} 6... Nf6 {[%clk
0:02:41.4]} 7. Nc3 {[%clk 0:02:53.8]} 7... d6 {[%clk 0:02:41.4]} 8. Be2 {[%clk
0:02:49.6]} 8... O-O {[%clk 0:02:41.4]} 9. O-O {[%clk 0:02:49]} 9... Bd7 {[%clk
0:02:41.3]} 10. f3 {[%clk 0:02:45.1]} 10... a6 {[%clk 0:02:38.6]} 11. Qd2 {[%clk
0:02:42.6]} 11... Rc8 {[%clk 0:02:38.5]} 12. Rac1 {[%clk 0:02:37.1]} 12... Ne5
{[%clk 0:02:38.3]} 13. b3 {[%clk 0:02:35.8]} 13... Qa5 {[%clk 0:02:27.5]} 14.
Nd5 {[%clk 0:02:24.1]} 14... Qd8 {[%clk 0:02:21.1]} 15. Rfe1 {[%clk 0:02:08.3]}
15... Rb8 {[%clk 0:02:03.5]} 16. a4 {[%clk 0:02:03.7]} 16... Nxd5 {[%clk
0:01:50.9]} 17. exd5 {[%clk 0:02:02.8]} 17... Bc8 {[%clk 0:01:42.3]} 18. Bf1
{[%clk 0:02:01.3]} 18... Nd7 {[%clk 0:01:40.2]} 19. b4 {[%clk 0:01:56.8]} 19...
Nb6 {[%clk 0:01:30.6]} 20. a5 {[%clk 0:01:54.5]} 20... Nd7 {[%clk 0:01:30.8]}
21. f4 {[%clk 0:01:50.2]} 21... Nf6 {[%clk 0:01:22.9]} 22. h3 {[%clk 0:01:43.6]}
22... Ne4 {[%clk 0:01:18.4]} 23. Qd3 {[%clk 0:01:42.4]} 23... Ng3 {[%clk
0:01:13.7]} 24. Bf2 {[%clk 0:01:38.7]} 24... Nxf1 {[%clk 0:01:08.5]} 25. Kxf1
{[%clk 0:01:39.6]} 25... Bd7 {[%clk 0:00:48.1]} 26. Bh4 {[%clk 0:01:39.1]} 26...
Re8 {[%clk 0:00:46.6]} 27. Re2 {[%clk 0:01:38.9]} 27... b6 {[%clk 0:00:41.7]}
28. Rce1 {[%clk 0:01:16.1]} 28... Bf8 {[%clk 0:00:40.2]} 29. axb6 {[%clk
0:01:00.3]} 29... Rxb6 {[%clk 0:00:41.1]} 30. c5 {[%clk 0:00:58.8]} 30... dxc5
{[%clk 0:00:16.1]} 31. bxc5 {[%clk 0:00:58.4]} 31... Bb5 {[%clk 0:00:10.6]} 32.
Nxb5 {[%clk 0:00:57.6]} 32... Rxb5 {[%clk 0:00:11.5]} 33. d6 {[%clk 0:00:40.2]}
33... Rxc5 {[%clk 0:00:10.7]} 34. Bxe7 {[%clk 0:00:40.7]} 34... Bxe7 {[%clk
0:00:09.4]} 35. Rxe7 {[%clk 0:00:40.5]} 35... Rxe7 {[%clk 0:00:07.1]} 36. Rxe7
{[%clk 0:00:41.4]} 36... Rc6 {[%clk 0:00:04.9]} 37. d7 {[%clk 0:00:41.2]} 37...
Re6 {[%clk 0:00:03.3]} 38. Rxe6 {[%clk 0:00:38.7]} 38... fxe6 {[%clk 0:00:04.2]}
39. Qd6 {[%clk 0:00:28.6]} 39... Kf7 {[%clk 0:00:04]} 40. Ke2 {[%clk 0:00:26.7]}
40... a5 {[%clk 0:00:04.3]} 41. Kd3 {[%clk 0:00:25.8]} 41... a4 {[%clk
0:00:04.7]} 42. Kc2 {[%clk 0:00:24.8]} 42... a3 {[%clk 0:00:05]} 43. Kb3 {[%clk
0:00:23.2]} 43... a2 {[%clk 0:00:05]} 44. Kxa2 {[%clk 0:00:22.4]} 44... h6
{[%clk 0:00:03.6]} 45. Kb3 {[%clk 0:00:22]} 45... h5 {[%clk 0:00:02.9]} 46. g4
{[%clk 0:00:18.9]} 46... hxg4 {[%clk 0:00:02.6]} 47. hxg4 {[%clk 0:00:19.8]} 1-0

[Event "*** Titled Tuesday Blitz"]
[Site "Chess.com"]
[Date "2020.12.01"]
[Round "8"]
[White "Perecke"]
[Black "esrosenberg"]
[Result "1-0"]
[WhiteElo "2377"]
[BlackElo "2210"]
[TimeControl "180+1"]
[EndTime "11:27:02 PST"]
[Termination "Perecke won on time"]

1. e4 {[%clk 0:03:00.9]} 1... e5 {[%clk 0:02:57.8]} 2. Nf3 {[%clk 0:03:01]} 2...
Nc6 {[%clk 0:02:58.1]} 3. Bb5 {[%clk 0:03:01.6]} 3... a6 {[%clk 0:02:58.2]} 4.
Ba4 {[%clk 0:03:01.6]} 4... Nf6 {[%clk 0:02:58.5]} 5. O-O {[%clk 0:03:01.6]}
5... Be7 {[%clk 0:02:59]} 6. Re1 {[%clk 0:03:01.2]} 6... b5 {[%clk 0:02:58.2]}
7. Bb3 {[%clk 0:03:01.7]} 7... O-O {[%clk 0:02:58.8]} 8. d4 {[%clk 0:03:00.9]}
8... Nxd4 {[%clk 0:02:57.9]} 9. Bxf7+ {[%clk 0:02:59.8]} 9... Rxf7 {[%clk
0:02:52.5]} 10. Nxe5 {[%clk 0:02:59.3]} 10... Rf8 {[%clk 0:02:43.9]} 11. Qxd4
{[%clk 0:02:56]} 11... Bb7 {[%clk 0:02:29.6]} 12. Nc3 {[%clk 0:02:50.4]} 12...
d6 {[%clk 0:02:22.8]} 13. Nf3 {[%clk 0:02:43.5]} 13... c5 {[%clk 0:02:06.7]} 14.
Qd3 {[%clk 0:02:32.6]} 14... h6 {[%clk 0:01:34]} 15. b3 {[%clk 0:02:22.1]} 15...
Ng4 {[%clk 0:01:21.7]} 16. Bb2 {[%clk 0:02:14.7]} 16... Bf6 {[%clk 0:01:06]} 17.
Rab1 {[%clk 0:01:59.9]} 17... Qe7 {[%clk 0:00:44.5]} 18. Nd5 {[%clk 0:01:53.2]}
18... Qf7 {[%clk 0:00:34.9]} 19. Nxf6+ {[%clk 0:01:42.3]} 19... Nxf6 {[%clk
0:00:34.5]} 20. Rbd1 {[%clk 0:01:31.2]} 20... Rad8 {[%clk 0:00:21.6]} 21. e5
{[%clk 0:01:19.3]} 21... dxe5 {[%clk 0:00:14.9]} 22. Qxd8 {[%clk 0:01:19.3]}
22... Rxd8 {[%clk 0:00:15.3]} 23. Rxd8+ {[%clk 0:01:19.5]} 23... Kh7 {[%clk
0:00:14.6]} 24. Nxe5 {[%clk 0:01:18.1]} 24... Qh5 {[%clk 0:00:12.9]} 25. f3
{[%clk 0:01:05.1]} 25... c4 {[%clk 0:00:11]} 26. bxc4 {[%clk 0:00:53.5]} 26...
Qh4 {[%clk 0:00:10.9]} 27. Rh8+ {[%clk 0:00:50.4]} 27... Kxh8 {[%clk 0:00:08.8]}
28. Ng6+ {[%clk 0:00:51.3]} 28... Kh7 {[%clk 0:00:09.4]} 29. Nxh4 {[%clk
0:00:52.2]} 29... bxc4 {[%clk 0:00:10.3]} 30. Nf5 {[%clk 0:00:48.5]} 30... Kg6
{[%clk 0:00:08.8]} 31. Nxg7 {[%clk 0:00:45.6]} 31... Nd5 {[%clk 0:00:07.1]} 32.
Ne6 {[%clk 0:00:41.6]} 32... c3 {[%clk 0:00:06.4]} 33. Bc1 {[%clk 0:00:42]}
33... Kf6 {[%clk 0:00:05.9]} 34. Nf4 {[%clk 0:00:41.8]} 34... Nb4 {[%clk
0:00:05.2]} 35. Re6+ {[%clk 0:00:39]} 35... Kf7 {[%clk 0:00:05]} 36. Rb6 {[%clk
0:00:39.9]} 36... Bxf3 {[%clk 0:00:02.9]} 37. Rxb4 {[%clk 0:00:39.3]} 37... Bd1
{[%clk 0:00:02.3]} 38. Rc4 {[%clk 0:00:37.1]} 38... Bxc2 {[%clk 0:00:03.2]} 39.
Rxc3 {[%clk 0:00:38]} 39... Bb1 {[%clk 0:00:03.4]} 40. Ra3 {[%clk 0:00:38.2]}
40... a5 {[%clk 0:00:03.3]} 41. Rxa5 {[%clk 0:00:38.3]} 41... h5 {[%clk
0:00:04.2]} 42. Nxh5 {[%clk 0:00:37.5]} 42... Ke7 {[%clk 0:00:04.6]} 43. Nf4
{[%clk 0:00:37.3]} 43... Kd7 {[%clk 0:00:04.6]} 44. a4 {[%clk 0:00:37.9]} 44...
Kc7 {[%clk 0:00:04.8]} 45. Ra6 {[%clk 0:00:38.3]} 45... Ba2 {[%clk 0:00:03.8]}
46. a5 {[%clk 0:00:38.1]} 46... Bc4 {[%clk 0:00:03.6]} 47. Ne6+ {[%clk
0:00:37.5]} 47... Kb7 {[%clk 0:00:02.8]} 48. Nc5+ {[%clk 0:00:37.8]} 48... Kb8
{[%clk 0:00:02.6]} 49. Rb6+ {[%clk 0:00:37.8]} 49... Ka8 {[%clk 0:00:02.5]} 50.
a6 {[%clk 0:00:37.6]} 50... Be2 {[%clk 0:00:01.4]} 51. Bf4 {[%clk 0:00:36.6]}
1-0